Body Name,Document Number,Service,Type of Expenditure,Invoice Date,Supplier Name,Cost to the Council (Amount Exc VAT),Month
EREWASH BOROUGH COUNCIL,7685,Non Domestic Rates Retention  ,NNDR Tariff                   ,19/01/22,DERBY CITY COUNCIL                      ,"520,564.97",Jan-22
EREWASH BOROUGH COUNCIL,7350,Community Services            ,General Equipment             ,18/11/21,RH ENVIRONMENTAL LTD                    ,"1,101.00",Jan-22
EREWASH BOROUGH COUNCIL,7472,Arts Development              ,Grants and Subscriptions      ,12/01/22,SPIRAL ARTS                             ,800.00,Jan-22
EREWASH BOROUGH COUNCIL,7186,Erewash Museum                ,PPM Mechanical and Equipment  ,31/12/21,MDB PLUMBING (NOTTM) LTD                ,476.41,Jan-22
EREWASH BOROUGH COUNCIL,6930,Erewash Museum                ,Electricity                   ,16/12/21,TOTALENERGIES GAS & POWER LTD           ,364.66,Jan-22
EREWASH BOROUGH COUNCIL,7668,Erewash Museum                ,Gas                           ,13/01/22,TOTALENERGIES GAS & POWER LTD           ,311.48,Jan-22
EREWASH BOROUGH COUNCIL,6931,Erewash Museum                ,Gas                           ,14/12/21,TOTALENERGIES GAS & POWER LTD           ,273.89,Jan-22
EREWASH BOROUGH COUNCIL,6856,Erewash Museum                ,Sanitary Services             ,02/12/21,RENTOKIL INITIAL SERVICES LIMITED       ,11.97,Jan-22
EREWASH BOROUGH COUNCIL,7738,Fireworks Display             ,Equipment for Hire            ,22/11/21,J.C.BALLS & SONS                        ,766.00,Jan-22
EREWASH BOROUGH COUNCIL,7339,Fireworks Display             ,Contracted Services           ,10/01/22,DERBY CITY COUNCIL                      ,"5,476.67",Jan-22
EREWASH BOROUGH COUNCIL,7529,Ilkeston Charter Fair         ,Contracted Services           ,01/01/22,WARD RECYCLING                          ,258.00,Jan-22
EREWASH BOROUGH COUNCIL,7531,Ilkeston Charter Fair         ,Contracted Services           ,01/01/22,WARD RECYCLING                          ,665.00,Jan-22
EREWASH BOROUGH COUNCIL,6706,Reprographics                 ,Stationery                    ,13/12/21,GETTY IMAGES INTERNATIONAL              ,"2,652.00",Jan-22
EREWASH BOROUGH COUNCIL,6833,Reprographics                 ,Equipment Leasing Charge      ,16/12/21,KONICA MINOLTA BUSINESS SOLUTIONS (UK) L,"1,014.93",Jan-22
EREWASH BOROUGH COUNCIL,6602,Reprographics                 ,Equipment Leasing Charge      ,10/12/21,KONICA MINOLTA BUSINESS SOLUTIONS (UK) L,392.54,Jan-22
EREWASH BOROUGH COUNCIL,7051,Transport Trading Account     ,Lubricants and Anti-freeze    ,20/12/21,EUROTRUCK MIDLANDS LTD                  ,598.00,Jan-22
EREWASH BOROUGH COUNCIL,7481,Household Waste Collection    ,Agency Staff                  ,03/01/22,EXTRA PERSONNEL LTD                     ,"4,759.78",Jan-22
EREWASH BOROUGH COUNCIL,7288,Household Waste Collection    ,Agency Staff                  ,27/12/21,EXTRA PERSONNEL LTD                     ,"3,837.25",Jan-22
EREWASH BOROUGH COUNCIL,7060,Household Waste Collection    ,Agency Staff                  ,13/12/21,EXTRA PERSONNEL LTD                     ,"4,498.29",Jan-22
EREWASH BOROUGH COUNCIL,6868,Household Waste Collection    ,Agency Staff                  ,06/12/21,EXTRA PERSONNEL LTD                     ,"5,801.90",Jan-22
EREWASH BOROUGH COUNCIL,7161,Household Waste Collection    ,Agency Staff                  ,20/12/21,EXTRA PERSONNEL LTD                     ,"5,885.85",Jan-22
EREWASH BOROUGH COUNCIL,6601,Household Waste Collection    ,Agency Staff                  ,29/11/21,EXTRA PERSONNEL LTD                     ,"6,440.21",Jan-22
EREWASH BOROUGH COUNCIL,7058,Household Waste Collection    ,Agency Staff                  ,13/12/21,EXTRA PERSONNEL LTD                     ,211.85,Jan-22
EREWASH BOROUGH COUNCIL,7031,Household Waste Collection    ,Agency Staff                  ,18/12/21,WORKCHAIN LTD                           ,583.31,Jan-22
EREWASH BOROUGH COUNCIL,7163,Household Waste Collection    ,Agency Staff                  ,25/12/21,WORKCHAIN LTD                           ,673.00,Jan-22
EREWASH BOROUGH COUNCIL,6820,Household Waste Collection    ,Agency Staff                  ,11/12/21,WORKCHAIN LTD                           ,816.26,Jan-22
EREWASH BOROUGH COUNCIL,7758,Household Waste Collection    ,Tyres                         ,31/12/21,LODGE TYRE COMPANY LTD                  ,849.76,Jan-22
EREWASH BOROUGH COUNCIL,7173,Household Waste Collection    ,Repairs and Maintenance       ,30/12/21,DENNIS EAGLE LTD                        ,704.56,Jan-22
EREWASH BOROUGH COUNCIL,7182,Household Waste Collection    ,Repairs and Maintenance       ,23/12/21,DENNIS EAGLE LTD                        ,"3,500.00",Jan-22
EREWASH BOROUGH COUNCIL,6582,Household Waste Collection    ,Repairs and Maintenance       ,08/12/21,DENNIS EAGLE LTD                        ,267.37,Jan-22
EREWASH BOROUGH COUNCIL,6583,Household Waste Collection    ,Repairs and Maintenance       ,08/12/21,DENNIS EAGLE LTD                        ,589.64,Jan-22
EREWASH BOROUGH COUNCIL,6716,Household Waste Collection    ,Repairs and Maintenance       ,15/12/21,FARID HILLEND ENGINEERING LIMITED       ,"1,040.00",Jan-22
EREWASH BOROUGH COUNCIL,6716,Household Waste Collection    ,Repairs and Maintenance       ,15/12/21,FARID HILLEND ENGINEERING LIMITED       ,"2,622.56",Jan-22
EREWASH BOROUGH COUNCIL,6717,Household Waste Collection    ,Repairs and Maintenance       ,15/12/21,FARID HILLEND ENGINEERING LIMITED       ,"1,524.28",Jan-22
EREWASH BOROUGH COUNCIL,6717,Household Waste Collection    ,Repairs and Maintenance       ,15/12/21,FARID HILLEND ENGINEERING LIMITED       ,"7,471.56",Jan-22
EREWASH BOROUGH COUNCIL,7312,Household Waste Collection    ,Repairs and Maintenance       ,06/12/21,PARTIC MOTOR SPARES LTD                 ,263.68,Jan-22
EREWASH BOROUGH COUNCIL,6488,Household Waste Collection    ,Repairs and Maintenance       ,07/12/21,ALPHA PARTNER (MIDLANDS)  LIMITED       ,190.51,Jan-22
EREWASH BOROUGH COUNCIL,7357,Trade Waste                   ,Training                      ,22/12/21,A.I.M Commercial Services Ltd           ,305.00,Jan-22
EREWASH BOROUGH COUNCIL,7480,Trade Waste                   ,Agency Staff                  ,03/01/22,EXTRA PERSONNEL LTD                     ,438.96,Jan-22
EREWASH BOROUGH COUNCIL,7286,Trade Waste                   ,Agency Staff                  ,27/12/21,EXTRA PERSONNEL LTD                     ,327.36,Jan-22
EREWASH BOROUGH COUNCIL,7810,Trade Waste                   ,Trade Waste                   ,26/01/22,KDS DERBY LIMITED,"1,866.06",Jan-22
EREWASH BOROUGH COUNCIL,7758,Trade Waste                   ,Tyres                         ,31/12/21,LODGE TYRE COMPANY LTD                  ,432.60,Jan-22
EREWASH BOROUGH COUNCIL,7498,Trade Waste                   ,Waste Disposal                ,06/12/21,DERBYSHIRE COUNTY COUNCIL...            ,"59,461.05",Jan-22
EREWASH BOROUGH COUNCIL,7498,Trade Waste                   ,Waste Disposal                ,06/12/21,DERBYSHIRE COUNTY COUNCIL...            ,"55,219.98",Jan-22
EREWASH BOROUGH COUNCIL,7056,Trade Waste                   ,Repairs and Maintenance       ,16/12/21,DENNIS EAGLE LTD                        ,513.62,Jan-22
EREWASH BOROUGH COUNCIL,7049,Trade Waste                   ,Repairs and Maintenance       ,17/12/21,EUROTRUCK MIDLANDS LTD                  ,254.00,Jan-22
EREWASH BOROUGH COUNCIL,6488,Trade Waste                   ,Repairs and Maintenance       ,07/12/21,ALPHA PARTNER (MIDLANDS)  LIMITED       ,190.51,Jan-22
EREWASH BOROUGH COUNCIL,6907,Kerbside Recycling Collection ,General Publicity and Promotio,18/12/21,ALPHA DRAIN SERVICES                    ,450.00,Jan-22
EREWASH BOROUGH COUNCIL,7481,Kerbside Recycling Collection ,Agency Staff                  ,03/01/22,EXTRA PERSONNEL LTD                     ,"3,173.18",Jan-22
EREWASH BOROUGH COUNCIL,7288,Kerbside Recycling Collection ,Agency Staff                  ,27/12/21,EXTRA PERSONNEL LTD                     ,"2,558.17",Jan-22
EREWASH BOROUGH COUNCIL,7060,Kerbside Recycling Collection ,Agency Staff                  ,13/12/21,EXTRA PERSONNEL LTD                     ,"2,998.86",Jan-22
EREWASH BOROUGH COUNCIL,6868,Kerbside Recycling Collection ,Agency Staff                  ,06/12/21,EXTRA PERSONNEL LTD                     ,"3,867.93",Jan-22
EREWASH BOROUGH COUNCIL,7161,Kerbside Recycling Collection ,Agency Staff                  ,20/12/21,EXTRA PERSONNEL LTD                     ,"3,923.90",Jan-22
EREWASH BOROUGH COUNCIL,6601,Kerbside Recycling Collection ,Agency Staff                  ,29/11/21,EXTRA PERSONNEL LTD                     ,"4,293.47",Jan-22
EREWASH BOROUGH COUNCIL,7058,Kerbside Recycling Collection ,Agency Staff                  ,13/12/21,EXTRA PERSONNEL LTD                     ,211.84,Jan-22
EREWASH BOROUGH COUNCIL,7279,Kerbside Recycling Collection ,Agency Staff                  ,01/01/22,WORKCHAIN LTD                           ,"1,209.30",Jan-22
EREWASH BOROUGH COUNCIL,7031,Kerbside Recycling Collection ,Agency Staff                  ,18/12/21,WORKCHAIN LTD                           ,583.30,Jan-22
EREWASH BOROUGH COUNCIL,7163,Kerbside Recycling Collection ,Agency Staff                  ,25/12/21,WORKCHAIN LTD                           ,"1,499.83",Jan-22
EREWASH BOROUGH COUNCIL,6820,Kerbside Recycling Collection ,Agency Staff                  ,11/12/21,WORKCHAIN LTD                           ,816.25,Jan-22
EREWASH BOROUGH COUNCIL,7758,Kerbside Recycling Collection ,Tyres                         ,31/12/21,LODGE TYRE COMPANY LTD                  ,"1,124.00",Jan-22
EREWASH BOROUGH COUNCIL,6488,Kerbside Recycling Collection ,Repairs and Maintenance       ,07/12/21,ALPHA PARTNER (MIDLANDS)  LIMITED       ,190.51,Jan-22
EREWASH BOROUGH COUNCIL,6720,Infec Disease & Food Poisoning,Fees Costs and Expenses       ,15/12/21,OSBORNE RICHARDSON                      ,630.00,Jan-22
EREWASH BOROUGH COUNCIL,6364,Corporate Health and Safety   ,Water Testing (Legionella)    ,30/11/21,STERILIZING SERVICES LTD                ,"1,020.90",Jan-22
EREWASH BOROUGH COUNCIL,6914,Corporate Health and Safety   ,Water Testing (Legionella)    ,21/12/21,STERILIZING SERVICES LTD                ,584.40,Jan-22
EREWASH BOROUGH COUNCIL,7157,Urban Renewal                 ,Agency Staff                  ,29/12/21,BUCKINGHAM FUTURES LIMITED              ,"1,259.13",Jan-22
EREWASH BOROUGH COUNCIL,6603,Urban Renewal                 ,Agency Staff                  ,08/12/21,BUCKINGHAM FUTURES LIMITED              ,"1,222.87",Jan-22
EREWASH BOROUGH COUNCIL,7038,Urban Renewal                 ,Agency Staff                  ,22/12/21,BUCKINGHAM FUTURES LIMITED              ,"1,254.03",Jan-22
EREWASH BOROUGH COUNCIL,6835,Urban Renewal                 ,Agency Staff                  ,15/12/21,BUCKINGHAM FUTURES LIMITED              ,"1,257.43",Jan-22
EREWASH BOROUGH COUNCIL,6418,Homelessness                  ,Homelessness-Lease Properties ,22/10/21,FUTURES HOMESCAPE LTD                   ,"1,141.75",Jan-22
EREWASH BOROUGH COUNCIL,6878,Homelessness                  ,Agency Staff                  ,14/12/21,JAMES ANDREWS RECRUITMENT SOLUTIONS     ,"1,480.00",Jan-22
EREWASH BOROUGH COUNCIL,7074,Homelessness                  ,Agency Staff                  ,21/12/21,JAMES ANDREWS RECRUITMENT SOLUTIONS     ,"1,480.00",Jan-22
EREWASH BOROUGH COUNCIL,6658,Homelessness                  ,Agency Staff                  ,07/12/21,JAMES ANDREWS RECRUITMENT SOLUTIONS     ,"1,480.00",Jan-22
EREWASH BOROUGH COUNCIL,7503,Homelessness Prevention       ,Contracted Services           ,14/01/22,PHOENIX LETTINGS AND PROPERTY MANAGEMENT,"2,318.00",Jan-22
EREWASH BOROUGH COUNCIL,7388,Homelessness Prevention       ,Spend to Save                 ,06/01/22,TRISTRAMS PROPERTY SERVICES LTD         ,"1,486.16",Jan-22
EREWASH BOROUGH COUNCIL,7186,Cotmanhay Pavilion            ,PPM Mechanical and Equipment  ,31/12/21,MDB PLUMBING (NOTTM) LTD                ,433.93,Jan-22
EREWASH BOROUGH COUNCIL,7528,Community Grants              ,Project Grants                ,17/01/22,PARKSIDE HIGH CIC                       ,850.00,Jan-22
EREWASH BOROUGH COUNCIL,7799,Community Grants              ,Grants and Subscriptions      ,25/01/22,AMBER COMMUNITY FIRST RESPONDERS,500.00,Jan-22
EREWASH BOROUGH COUNCIL,7281,Community Grants              ,Grants and Subscriptions      ,06/01/22,WEST HALLAM METHODIST CHURCH SOCIETY ACC,350.00,Jan-22
EREWASH BOROUGH COUNCIL,7476,Front Line Support Services   ,Security                      ,31/12/21,KINGS ARMOURED SECURITY SERVICES        ,705.60,Jan-22
EREWASH BOROUGH COUNCIL,6651,VAT - (Corporate matters only),Consultants Fees              ,13/12/21,PS TAX                                  ,"2,050.00",Jan-22
EREWASH BOROUGH COUNCIL,8571,Treasury and Bank Charges     ,Bank Charges                  ,10/01/22,LLOYDS BANK PLC                         ,866.87,Jan-22
EREWASH BOROUGH COUNCIL,7714,Treasury and Bank Charges     ,Credit/Debit Card Charges     ,11/01/22,CAPITA                                  ,"4,102.74",Jan-22
EREWASH BOROUGH COUNCIL,8120,Treasury and Bank Charges     ,Allpay/Post Office Charges    ,31/01/22,ALLPAY LIMITED                          ,745.17,Jan-22
EREWASH BOROUGH COUNCIL,7599,Accountancy                   ,Agency Staff                  ,16/01/22,MACILDOWIE RECRUITMENT EXPERTISE        ,"1,030.94",Jan-22
EREWASH BOROUGH COUNCIL,7355,Accountancy                   ,Agency Staff                  ,09/01/22,MACILDOWIE RECRUITMENT EXPERTISE        ,854.60,Jan-22
EREWASH BOROUGH COUNCIL,7172,Accountancy                   ,Agency Staff                  ,26/12/21,MACILDOWIE RECRUITMENT EXPERTISE        ,827.47,Jan-22
EREWASH BOROUGH COUNCIL,7171,Revenues and Benefits         ,Postages                      ,15/12/21,ROYAL MAIL GROUP LTD.                   ,"1,382.36",Jan-22
EREWASH BOROUGH COUNCIL,6606,Revenues and Benefits         ,Postages                      ,07/12/21,ROYAL MAIL GROUP LTD.                   ,341.67,Jan-22
EREWASH BOROUGH COUNCIL,6947,Council Tax Collection        ,Fees Costs and Expenses       ,16/12/21,LEXISNEXIS BUTTERWORTHS                 ,"1,864.00",Jan-22
EREWASH BOROUGH COUNCIL,6715,ICT Support Services          ,General Equipment             ,15/12/21,XERETEC OFFICE SYSTEMS LTS              ,"3,786.00",Jan-22
EREWASH BOROUGH COUNCIL,7200,ICT Support Services          ,Equipment Leasing Charge      ,24/12/21,KYOCERA DOCUMENT SOLUTIONS (UK) LTD     ,"1,685.00",Jan-22
EREWASH BOROUGH COUNCIL,6845,ICT Support Services          ,Equipment Leasing Charge      ,13/12/21,KYOCERA DOCUMENT SOLUTIONS (UK) LTD     ,"2,634.42",Jan-22
EREWASH BOROUGH COUNCIL,6932,ICT Support Services          ,Software Licences             ,20/12/21,INSIGHT DIRECT (UK) LTD                 ,"8,902.55",Jan-22
EREWASH BOROUGH COUNCIL,7308,ICT Support Services          ,Software Licences             ,31/12/21,SPECOPS SOFTWARE LTD                    ,457.92,Jan-22
EREWASH BOROUGH COUNCIL,7795,ICT Support Services          ,Software Licences             ,01/10/21,LEGAL ESCROW & ARBITRATION SERVICES LIMI,570.00,Jan-22
EREWASH BOROUGH COUNCIL,7518,ICT Support Services          ,Mobile Phones                 ,01/01/22,CLASS AFFINITY PROJECTS LTD             ,"2,253.01",Jan-22
EREWASH BOROUGH COUNCIL,7195,ICT Support Services          ,Telephones                    ,21/12/21,BRITISH TELECOMMUNICATIONS PLC          ,668.00,Jan-22
EREWASH BOROUGH COUNCIL,7198,ICT Support Services          ,Telephones                    ,22/12/21,BRITISH TELECOMMUNICATIONS PLC          ,"1,674.22",Jan-22
EREWASH BOROUGH COUNCIL,7283,Personnel                     ,Apprenticeship Levy           ,20/01/22,HMRC CUMBERNAULD                        ,"1,942.00",Jan-22
EREWASH BOROUGH COUNCIL,7283,Personnel                     ,Apprenticeship Levy           ,20/01/22,HMRC CUMBERNAULD                        ,"1,250.00",Jan-22
EREWASH BOROUGH COUNCIL,8557,Personnel                     ,Recruitment Expenses          ,31/01/22,DISCLOSURE & BARRING SERVICE            ,320.00,Jan-22
EREWASH BOROUGH COUNCIL,7504,Personnel                     ,Recruitment Expenses          ,13/01/22,TILE HILL EXECUTIVE RECRUITMENT         ,"16,600.00",Jan-22
EREWASH BOROUGH COUNCIL,7174,Occupational Health & Welfare ,Occupational Health Service   ,01/01/22,BUPA HEALTH CLINICS                     ,418.55,Jan-22
EREWASH BOROUGH COUNCIL,6490,Occupational Health & Welfare ,Occupational Health Service   ,07/12/21,MEDIGOLD HEALTH CONSULTANCY LIMITED     ,452.50,Jan-22
EREWASH BOROUGH COUNCIL,7385,Development Control           ,Planning Fees                 ,12/01/22,PORTALPLANQUEST LTD                     ,462.00,Jan-22
EREWASH BOROUGH COUNCIL,5266,Development Control           ,Agency Staff                  ,18/10/21,EXTRA PERSONNEL LTD                     ,550.56,Jan-22
EREWASH BOROUGH COUNCIL,4791,Development Control           ,Agency Staff                  ,15/10/21,EXTRA PERSONNEL LTD                     ,550.56,Jan-22
EREWASH BOROUGH COUNCIL,7812,Development Control           ,Reference Literature and Publi,01/01/22,THOMSON REUTERS                         ,"2,240.25",Jan-22
EREWASH BOROUGH COUNCIL,7552,Development Control           ,Consultants Fees              ,31/12/21,IDOM MEREBROOK LTD                      ,"1,500.00",Jan-22
EREWASH BOROUGH COUNCIL,7346,Development Control           ,Consultants Fees              ,31/10/21,IDOM MEREBROOK LTD                      ,"1,200.00",Jan-22
EREWASH BOROUGH COUNCIL,7654,Development Control           ,Consultants Fees              ,20/12/21,DLP PLANNING LIMITED                    ,"3,168.37",Jan-22
EREWASH BOROUGH COUNCIL,7765,Economic Development          ,Project Grants                ,31/12/21,PS TAX                                  ,"3,780.00",Jan-22
EREWASH BOROUGH COUNCIL,7169,Building Control - Fee Earning,Agency Staff                  ,17/12/21,REED SPECIALIST RECRUITMENT LTD         ,650.46,Jan-22
EREWASH BOROUGH COUNCIL,7351,Building Control - Fee Earning,Agency Staff                  ,24/12/21,REED SPECIALIST RECRUITMENT LTD         ,667.85,Jan-22
EREWASH BOROUGH COUNCIL,6944,Building Control - Fee Earning,Agency Staff                  ,10/12/21,REED SPECIALIST RECRUITMENT LTD         ,650.46,Jan-22
EREWASH BOROUGH COUNCIL,7316,Building Control Adv & Inform ,Contracted Services           ,01/01/22,RANSOMWOOD ESTATES UK LIMITED           ,531.67,Jan-22
EREWASH BOROUGH COUNCIL,6822,Registration of Electors      ,Stationery                    ,16/12/21,IDOX SOFTWARE LIMITED                   ,263.35,Jan-22
EREWASH BOROUGH COUNCIL,7076,Legal Services                ,Reference Literature and Publi,21/12/21,LEXISNEXIS BUTTERWORTHS                 ,499.00,Jan-22
EREWASH BOROUGH COUNCIL,7477,Legal Services                ,"Stamp Duty,Search and Legal Fe",12/01/22,CORNERSTONE BARRISTERS                  ,"4,750.00",Jan-22
EREWASH BOROUGH COUNCIL,7191,Civic Duties Hospitality      ,Christmas Carol Service       ,24/12/21,B&B AUDIO                               ,420.00,Jan-22
EREWASH BOROUGH COUNCIL,6948,Democratic Representation     ,Communications costs          ,22/12/21,SNOW ELK PRODUCTIONS                    ,400.00,Jan-22
EREWASH BOROUGH COUNCIL,7482,Green Space                   ,Agency Staff                  ,03/01/22,EXTRA PERSONNEL LTD                     ,648.00,Jan-22
EREWASH BOROUGH COUNCIL,7059,Green Space                   ,Agency Staff                  ,13/12/21,EXTRA PERSONNEL LTD                     ,"1,158.09",Jan-22
EREWASH BOROUGH COUNCIL,7061,Green Space                   ,Agency Staff                  ,13/12/21,EXTRA PERSONNEL LTD                     ,"2,055.62",Jan-22
EREWASH BOROUGH COUNCIL,6930,Green Space                   ,Electricity                   ,16/12/21,TOTALENERGIES GAS & POWER LTD           ,"2,160.04",Jan-22
EREWASH BOROUGH COUNCIL,6930,Green Space                   ,Electricity                   ,16/12/21,TOTALENERGIES GAS & POWER LTD           ,576.21,Jan-22
EREWASH BOROUGH COUNCIL,6857,Green Space                   ,Electricity                   ,16/12/21,TOTALENERGIES GAS & POWER LTD           ,979.82,Jan-22
EREWASH BOROUGH COUNCIL,7668,Green Space                   ,Gas                           ,13/01/22,TOTALENERGIES GAS & POWER LTD           ,305.86,Jan-22
EREWASH BOROUGH COUNCIL,6931,Green Space                   ,Gas                           ,14/12/21,TOTALENERGIES GAS & POWER LTD           ,252.30,Jan-22
EREWASH BOROUGH COUNCIL,7582,Green Space                   ,Metered Water                 ,01/01/22,SCOTTISH WATER BUSINESS STREAM LIMITED  ,"1,929.58",Jan-22
EREWASH BOROUGH COUNCIL,7758,Green Space                   ,Tyres                         ,31/12/21,LODGE TYRE COMPANY LTD                  ,216.30,Jan-22
EREWASH BOROUGH COUNCIL,6903,Green Space                   ,Materials/Consumables         ,16/12/21,ORIGIN AMENITY SOLUTIONS                ,"1,220.25",Jan-22
EREWASH BOROUGH COUNCIL,7530,Green Space                   ,Materials/Consumables         ,31/12/21,WARD RECYCLING                          ,600.00,Jan-22
EREWASH BOROUGH COUNCIL,6690,Green Space                   ,Materials/Consumables         ,11/12/21,STANTON RECYCLING LIMITED               ,"1,919.20",Jan-22
EREWASH BOROUGH COUNCIL,6887,Green Space                   ,Materials/Consumables         ,15/12/21,PROTECTIVE WEAR SUPPLIES LTD            ,285.58,Jan-22
EREWASH BOROUGH COUNCIL,7029,Green Space                   ,Repairs and Maintenance       ,21/12/21,HENTON & CHATTELL LTD                   ,650.88,Jan-22
EREWASH BOROUGH COUNCIL,6656,Green Space                   ,Repairs and Maintenance       ,11/12/21,PARTSPLUS                               ,"1,048.31",Jan-22
EREWASH BOROUGH COUNCIL,6488,Green Space                   ,Repairs and Maintenance       ,07/12/21,ALPHA PARTNER (MIDLANDS)  LIMITED       ,190.51,Jan-22
EREWASH BOROUGH COUNCIL,6698,Trees Hedges Local Nature Res ,Contracted Services           ,14/12/21,TOM RICHARDS TREE SERVICES              ,850.00,Jan-22
EREWASH BOROUGH COUNCIL,6911,Trees Hedges Local Nature Res ,Contracted Services           ,20/12/21,TOM RICHARDS TREE SERVICES              ,900.00,Jan-22
EREWASH BOROUGH COUNCIL,6910,Trees Hedges Local Nature Res ,Contracted Services           ,20/12/21,TOM RICHARDS TREE SERVICES              ,950.00,Jan-22
EREWASH BOROUGH COUNCIL,6615,Trees Hedges Local Nature Res ,Contracted Services           ,09/12/21,TOM RICHARDS TREE SERVICES              ,350.00,Jan-22
EREWASH BOROUGH COUNCIL,6617,Trees Hedges Local Nature Res ,Contracted Services           ,09/12/21,TOM RICHARDS TREE SERVICES              ,350.00,Jan-22
EREWASH BOROUGH COUNCIL,6616,Trees Hedges Local Nature Res ,Contracted Services           ,09/12/21,TOM RICHARDS TREE SERVICES              ,450.00,Jan-22
EREWASH BOROUGH COUNCIL,6614,Trees Hedges Local Nature Res ,Contracted Services           ,09/12/21,TOM RICHARDS TREE SERVICES              ,480.00,Jan-22
EREWASH BOROUGH COUNCIL,6613,Trees Hedges Local Nature Res ,Contracted Services           ,09/12/21,TOM RICHARDS TREE SERVICES              ,750.00,Jan-22
EREWASH BOROUGH COUNCIL,7582,Allotments                    ,Metered Water                 ,01/01/22,SCOTTISH WATER BUSINESS STREAM LIMITED  ,471.51,Jan-22
EREWASH BOROUGH COUNCIL,7483,Public Conveniences           ,Agency Staff                  ,03/01/22,EXTRA PERSONNEL LTD                     ,500.00,Jan-22
EREWASH BOROUGH COUNCIL,7285,Public Conveniences           ,Agency Staff                  ,27/12/21,EXTRA PERSONNEL LTD                     ,775.96,Jan-22
EREWASH BOROUGH COUNCIL,6930,Public Conveniences           ,Electricity                   ,16/12/21,TOTALENERGIES GAS & POWER LTD           ,631.58,Jan-22
EREWASH BOROUGH COUNCIL,7582,Public Conveniences           ,Metered Water                 ,01/01/22,SCOTTISH WATER BUSINESS STREAM LIMITED  ,"1,014.53",Jan-22
EREWASH BOROUGH COUNCIL,6856,Public Conveniences           ,Sanitary Services             ,02/12/21,RENTOKIL INITIAL SERVICES LIMITED       ,101.18,Jan-22
EREWASH BOROUGH COUNCIL,7479,Street Scene                  ,Agency Staff                  ,03/01/22,EXTRA PERSONNEL LTD                     ,780.15,Jan-22
EREWASH BOROUGH COUNCIL,7483,Street Scene                  ,Agency Staff                  ,03/01/22,EXTRA PERSONNEL LTD                     ,"1,889.16",Jan-22
EREWASH BOROUGH COUNCIL,7482,Street Scene                  ,Agency Staff                  ,03/01/22,EXTRA PERSONNEL LTD                     ,"1,795.73",Jan-22
EREWASH BOROUGH COUNCIL,7158,Street Scene                  ,Agency Staff                  ,20/12/21,EXTRA PERSONNEL LTD                     ,550.56,Jan-22
EREWASH BOROUGH COUNCIL,7162,Street Scene                  ,Agency Staff                  ,20/12/21,EXTRA PERSONNEL LTD                     ,806.61,Jan-22
EREWASH BOROUGH COUNCIL,7160,Street Scene                  ,Agency Staff                  ,20/12/21,EXTRA PERSONNEL LTD                     ,"2,508.81",Jan-22
EREWASH BOROUGH COUNCIL,7159,Street Scene                  ,Agency Staff                  ,20/12/21,EXTRA PERSONNEL LTD                     ,"3,765.49",Jan-22
EREWASH BOROUGH COUNCIL,7289,Street Scene                  ,Agency Staff                  ,27/12/21,EXTRA PERSONNEL LTD                     ,420.84,Jan-22
EREWASH BOROUGH COUNCIL,7287,Street Scene                  ,Agency Staff                  ,27/12/21,EXTRA PERSONNEL LTD                     ,"1,606.02",Jan-22
EREWASH BOROUGH COUNCIL,7285,Street Scene                  ,Agency Staff                  ,27/12/21,EXTRA PERSONNEL LTD                     ,"2,321.64",Jan-22
EREWASH BOROUGH COUNCIL,7062,Street Scene                  ,Agency Staff                  ,13/12/21,EXTRA PERSONNEL LTD                     ,550.56,Jan-22
EREWASH BOROUGH COUNCIL,7057,Street Scene                  ,Agency Staff                  ,13/12/21,EXTRA PERSONNEL LTD                     ,888.44,Jan-22
EREWASH BOROUGH COUNCIL,7059,Street Scene                  ,Agency Staff                  ,13/12/21,EXTRA PERSONNEL LTD                     ,"2,593.27",Jan-22
EREWASH BOROUGH COUNCIL,7061,Street Scene                  ,Agency Staff                  ,13/12/21,EXTRA PERSONNEL LTD                     ,"2,055.61",Jan-22
EREWASH BOROUGH COUNCIL,7758,Street Scene                  ,Tyres                         ,31/12/21,LODGE TYRE COMPANY LTD                  ,364.62,Jan-22
EREWASH BOROUGH COUNCIL,6428,Street Scene                  ,Materials/Consumables         ,07/12/21,ALPHA PARTNER (MIDLANDS)  LIMITED       ,970.00,Jan-22
EREWASH BOROUGH COUNCIL,6427,Street Scene                  ,Materials/Consumables         ,07/12/21,ALPHA PARTNER (MIDLANDS)  LIMITED       ,"1,784.80",Jan-22
EREWASH BOROUGH COUNCIL,6882,Street Scene                  ,Street Furniture              ,17/12/21,NIBRA SIGNS LTD                         ,316.40,Jan-22
EREWASH BOROUGH COUNCIL,6881,Street Scene                  ,Street Furniture              ,17/12/21,NIBRA SIGNS LTD                         ,"3,753.08",Jan-22
EREWASH BOROUGH COUNCIL,6712,Street Scene                  ,Contracted Services           ,14/12/21,T H HEATH  CONTRACTS  LTD               ,472.00,Jan-22
EREWASH BOROUGH COUNCIL,7053,Street Scene                  ,Contracted Services           ,22/12/21,STEELCRAFT FABRICATIONS                 ,520.00,Jan-22
EREWASH BOROUGH COUNCIL,6640,Street Scene                  ,Contracted Services           ,07/12/21,PROTECTIVE WEAR SUPPLIES LTD            ,415.16,Jan-22
EREWASH BOROUGH COUNCIL,6701,Street Scene                  ,Repairs and Maintenance       ,10/12/21,SCARAB SWEEPERS LTD                     ,"1,901.34",Jan-22
EREWASH BOROUGH COUNCIL,7760,Street Scene                  ,Repairs and Maintenance       ,31/12/21,MOTUS COMMERCIALS                       ,250.23,Jan-22
EREWASH BOROUGH COUNCIL,7313,Street Scene                  ,Repairs and Maintenance       ,09/12/21,MOTUS COMMERCIALS                       ,337.22,Jan-22
EREWASH BOROUGH COUNCIL,6488,Street Scene                  ,Repairs and Maintenance       ,07/12/21,ALPHA PARTNER (MIDLANDS)  LIMITED       ,190.51,Jan-22
EREWASH BOROUGH COUNCIL,7352,Street Scene                  ,Maintenance of Bus Shelters   ,05/01/22,DERBYSHIRE COUNTY COUNCIL...            ,"3,671.80",Jan-22
EREWASH BOROUGH COUNCIL,7758,Dog Control                   ,Tyres                         ,31/12/21,LODGE TYRE COMPANY LTD                  ,185.40,Jan-22
EREWASH BOROUGH COUNCIL,6699,Neighbourhood Wardens         ,Repairs and Maintenance       ,09/12/21,PARTSPLUS                               ,284.11,Jan-22
EREWASH BOROUGH COUNCIL,6930,CCTV - Ilkeston and Long Eaton,Electricity                   ,16/12/21,TOTALENERGIES GAS & POWER LTD           ,385.31,Jan-22
EREWASH BOROUGH COUNCIL,6501,Car Parking                   ,Reactive Maintenance          ,07/12/21,N B CONSTRUCTION                        ,20.72,Jan-22
EREWASH BOROUGH COUNCIL,6930,Car Parking                   ,Electricity                   ,16/12/21,TOTALENERGIES GAS & POWER LTD           ,815.86,Jan-22
EREWASH BOROUGH COUNCIL,7180,Car Parking                   ,Credit/Debit Card Charges     ,31/12/21,INTERNATIONAL PARKING SYSTEMS UK LTD    ,"1,081.20",Jan-22
EREWASH BOROUGH COUNCIL,7536,Car Parking                   ,Credit/Debit Card Charges     ,31/12/21,KINGS ARMOURED SECURITY SERVICES        ,"1,207.85",Jan-22
EREWASH BOROUGH COUNCIL,7183,Car Parking                   ,Credit/Debit Card Charges     ,30/11/21,KINGS ARMOURED SECURITY SERVICES        ,267.10,Jan-22
EREWASH BOROUGH COUNCIL,7184,Car Parking                   ,Credit/Debit Card Charges     ,30/11/21,KINGS ARMOURED SECURITY SERVICES        ,"1,552.95",Jan-22
EREWASH BOROUGH COUNCIL,6856,Long Eaton Market             ,Sanitary Services             ,02/12/21,RENTOKIL INITIAL SERVICES LIMITED       ,1.46,Jan-22
EREWASH BOROUGH COUNCIL,6930,Ilkeston Market               ,Electricity                   ,16/12/21,TOTALENERGIES GAS & POWER LTD           ,456.46,Jan-22
EREWASH BOROUGH COUNCIL,6930,Shopmobility - Long Eaton     ,Electricity                   ,16/12/21,TOTALENERGIES GAS & POWER LTD           ,328.22,Jan-22
EREWASH BOROUGH COUNCIL,6856,Shopmobility - Long Eaton     ,Sanitary Services             ,02/12/21,RENTOKIL INITIAL SERVICES LIMITED       ,2.92,Jan-22
EREWASH BOROUGH COUNCIL,7705,Leisure Services              ,Contracted Services           ,20/01/22,PARKWOOD LEISURE LTD                    ,"28,211.78",Jan-22
EREWASH BOROUGH COUNCIL,7383,Leisure Services              ,Contracted Services           ,20/12/21,PARKWOOD LEISURE LTD                    ,"26,831.98",Jan-22
EREWASH BOROUGH COUNCIL,6501,Pedestrian Zones - Ilk and LE ,Repairs and Maintenance       ,07/12/21,N B CONSTRUCTION                        ,80.00,Jan-22
EREWASH BOROUGH COUNCIL,6501,Pedestrian Zones - Ilk and LE ,Reactive Maintenance          ,07/12/21,N B CONSTRUCTION                        ,57.28,Jan-22
EREWASH BOROUGH COUNCIL,7052,Pedestrian Zones - Ilk and LE ,Reactive Maintenance          ,22/12/21,STEELCRAFT FABRICATIONS                 ,275.00,Jan-22
EREWASH BOROUGH COUNCIL,6501,Pedestrian Zones - Ilk and LE ,PPM Mechanical and Equipment  ,07/12/21,N B CONSTRUCTION                        ,225.00,Jan-22
EREWASH BOROUGH COUNCIL,7363,Property and Estates          ,Repairs and Maintenance       ,24/12/21,NORWOOD ELECTRICAL UK LTD               ,"1,001.36",Jan-22
EREWASH BOROUGH COUNCIL,6825,Property and Estates          ,Repairs and Maintenance       ,15/12/21,PEEL ELECTRICAL LTD                     ,489.04,Jan-22
EREWASH BOROUGH COUNCIL,7384,Property and Estates          ,Reactive Maintenance          ,13/12/21,NODE BUILDING CONSULTANCY LTD           ,"2,250.00",Jan-22
EREWASH BOROUGH COUNCIL,7384,Property and Estates          ,Reactive Maintenance          ,13/12/21,NODE BUILDING CONSULTANCY LTD           ,325.00,Jan-22
EREWASH BOROUGH COUNCIL,6424,Property and Estates          ,Reactive Maintenance          ,07/12/21,ALPHA PARTNER (MIDLANDS)  LIMITED       ,265.00,Jan-22
EREWASH BOROUGH COUNCIL,6421,Property and Estates          ,Reactive Maintenance          ,07/12/21,ALPHA PARTNER (MIDLANDS)  LIMITED       ,330.00,Jan-22
EREWASH BOROUGH COUNCIL,6419,Property and Estates          ,Reactive Maintenance          ,07/12/21,ALPHA PARTNER (MIDLANDS)  LIMITED       ,470.00,Jan-22
EREWASH BOROUGH COUNCIL,7034,Property and Estates          ,Alarms Reactive Maintenance   ,21/12/21,CONCEPT ELEVATORS (UK) LTD              ,897.80,Jan-22
EREWASH BOROUGH COUNCIL,7186,Parks Changing Rooms          ,PPM Mechanical and Equipment  ,31/12/21,MDB PLUMBING (NOTTM) LTD                ,314.22,Jan-22
EREWASH BOROUGH COUNCIL,7364,Merlin Way Depot              ,PPM Mechanical and Equipment  ,31/12/21,ACCESS DOORS LTD                        ,"1,015.00",Jan-22
EREWASH BOROUGH COUNCIL,6857,Merlin Way Depot              ,Electricity                   ,16/12/21,TOTALENERGIES GAS & POWER LTD           ,"2,355.54",Jan-22
EREWASH BOROUGH COUNCIL,7668,Merlin Way Depot              ,Gas                           ,13/01/22,TOTALENERGIES GAS & POWER LTD           ,527.29,Jan-22
EREWASH BOROUGH COUNCIL,6931,Merlin Way Depot              ,Gas                           ,14/12/21,TOTALENERGIES GAS & POWER LTD           ,479.18,Jan-22
EREWASH BOROUGH COUNCIL,7582,Merlin Way Depot              ,Metered Water                 ,01/01/22,SCOTTISH WATER BUSINESS STREAM LIMITED  ,"1,056.11",Jan-22
EREWASH BOROUGH COUNCIL,6856,Merlin Way Depot              ,Sanitary Services             ,02/12/21,RENTOKIL INITIAL SERVICES LIMITED       ,58.98,Jan-22
EREWASH BOROUGH COUNCIL,6857,Civic Accommodation Long Eaton,Electricity                   ,16/12/21,TOTALENERGIES GAS & POWER LTD           ,"1,796.23",Jan-22
EREWASH BOROUGH COUNCIL,7668,Civic Accommodation Long Eaton,Gas                           ,13/01/22,TOTALENERGIES GAS & POWER LTD           ,"1,007.60",Jan-22
EREWASH BOROUGH COUNCIL,6931,Civic Accommodation Long Eaton,Gas                           ,14/12/21,TOTALENERGIES GAS & POWER LTD           ,882.56,Jan-22
EREWASH BOROUGH COUNCIL,6856,Civic Accommodation Long Eaton,Sanitary Services             ,02/12/21,RENTOKIL INITIAL SERVICES LIMITED       ,63.70,Jan-22
EREWASH BOROUGH COUNCIL,6930,Civic Accommodation Ilkeston  ,Electricity                   ,16/12/21,TOTALENERGIES GAS & POWER LTD           ,439.71,Jan-22
EREWASH BOROUGH COUNCIL,6857,Civic Accommodation Ilkeston  ,Electricity                   ,16/12/21,TOTALENERGIES GAS & POWER LTD           ,"1,431.69",Jan-22
EREWASH BOROUGH COUNCIL,7668,Civic Accommodation Ilkeston  ,Gas                           ,13/01/22,TOTALENERGIES GAS & POWER LTD           ,"1,113.25",Jan-22
EREWASH BOROUGH COUNCIL,6931,Civic Accommodation Ilkeston  ,Gas                           ,14/12/21,TOTALENERGIES GAS & POWER LTD           ,906.63,Jan-22
EREWASH BOROUGH COUNCIL,7582,Civic Accommodation Ilkeston  ,Metered Water                 ,01/01/22,SCOTTISH WATER BUSINESS STREAM LIMITED  ,370.04,Jan-22
EREWASH BOROUGH COUNCIL,6856,Civic Accommodation Ilkeston  ,Vending Machine Provisions    ,02/12/21,RENTOKIL INITIAL SERVICES LIMITED       ,54.38,Jan-22
EREWASH BOROUGH COUNCIL,6856,Civic Accommodation Ilkeston  ,Sanitary Services             ,02/12/21,RENTOKIL INITIAL SERVICES LIMITED       ,48.12,Jan-22
EREWASH BOROUGH COUNCIL,6930,Toll Bar House                ,Electricity                   ,16/12/21,TOTALENERGIES GAS & POWER LTD           ,959.49,Jan-22
EREWASH BOROUGH COUNCIL,7582,Toll Bar House                ,Metered Water                 ,01/01/22,SCOTTISH WATER BUSINESS STREAM LIMITED  ,613.75,Jan-22
EREWASH BOROUGH COUNCIL,6857,Sandiacre Friesland Sports Ctr,Electricity                   ,16/12/21,TOTALENERGIES GAS & POWER LTD           ,511.16,Jan-22
EREWASH BOROUGH COUNCIL,7668,Sandiacre Friesland Sports Ctr,Gas                           ,13/01/22,TOTALENERGIES GAS & POWER LTD           ,374.25,Jan-22
EREWASH BOROUGH COUNCIL,6931,Sandiacre Friesland Sports Ctr,Gas                           ,14/12/21,TOTALENERGIES GAS & POWER LTD           ,316.51,Jan-22
EREWASH BOROUGH COUNCIL,6828,Insurances                    ,Uninsured Risks               ,14/12/21,PROTECTOR INSURANCE                     ,340.00,Jan-22
EREWASH BOROUGH COUNCIL,8337,EBC Balance Sheet             ,Employee Car Loans            ,19/01/22,REDACTED PERSONAL DATA,"10,000.00",Jan-22
EREWASH BOROUGH COUNCIL,7196,EBC Balance Sheet             ,Fuel Store                    ,17/12/21,TENNANTS DISTRIBUTION LTD               ,260.00,Jan-22
EREWASH BOROUGH COUNCIL,6683,EBC Balance Sheet             ,Fuel Store                    ,08/12/21,CERTAS ENERGY UK LIMITED T/A CARLTON FUE,"20,756.95",Jan-22
EREWASH BOROUGH COUNCIL,7154,EBC Balance Sheet             ,Bond Deposit Accounts S106    ,30/12/21,DERBYSHIRE COUNTY COUNCIL...            ,"100,000.00",Jan-22
EREWASH BOROUGH COUNCIL,7283,EBC Balance Sheet             ,Payroll Coll Acc - Income Tax ,20/01/22,HMRC CUMBERNAULD                        ,"62,037.97",Jan-22
EREWASH BOROUGH COUNCIL,6837,EBC Balance Sheet             ,Payroll Coll Acc - Income Tax ,18/01/22,HMRC CUMBERNAULD                        ,453.40,Jan-22
EREWASH BOROUGH COUNCIL,7036,EBC Balance Sheet             ,Payroll Coll Acc Superanuation,14/01/22,DERBYSHIRE COUNTY COUNCIL...            ,"120,085.82",Jan-22
EREWASH BOROUGH COUNCIL,7036,EBC Balance Sheet             ,Payroll Coll Acc Superanuation,14/01/22,DERBYSHIRE COUNTY COUNCIL...            ,"83,250.00",Jan-22
EREWASH BOROUGH COUNCIL,7036,EBC Balance Sheet             ,Payroll Coll Acc Superanuation,14/01/22,DERBYSHIRE COUNTY COUNCIL...            ,253.84,Jan-22
EREWASH BOROUGH COUNCIL,7283,EBC Balance Sheet             ,Payroll Coll Acc National Ins ,20/01/22,HMRC CUMBERNAULD                        ,"98,338.00",Jan-22
EREWASH BOROUGH COUNCIL,6837,EBC Balance Sheet             ,Payroll Coll Acc National Ins ,18/01/22,HMRC CUMBERNAULD                        ,558.46,Jan-22
EREWASH BOROUGH COUNCIL,7283,EBC Balance Sheet             ,Payroll Coll Acc Student Loan ,20/01/22,HMRC CUMBERNAULD                        ,"1,136.00",Jan-22
EREWASH BOROUGH COUNCIL,8790,EBC Balance Sheet             ,Lloyds Credit Card Suspense   ,04/01/22,LLOYDS BANK PLC                         ,776.16,Jan-22
EREWASH BOROUGH COUNCIL,8790,EBC Balance Sheet             ,Lloyds Credit Card Suspense   ,04/01/22,LLOYDS BANK PLC                         ,490.00,Jan-22
EREWASH BOROUGH COUNCIL,7697,EBC Balance Sheet             ,NNDR Coll Fund Control Account,19/01/22,"DEPT FOR LEVELLING UP,HOUSING&COMMUNITIE","976,981.00",Jan-22
EREWASH BOROUGH COUNCIL,7770,EBC Balance Sheet             ,EBC Fit for Work Scheme       ,24/01/22,PARKWOOD LEISURE LTD                    ,459.00,Jan-22
EREWASH BOROUGH COUNCIL,6924,EBC Balance Sheet             ,EBC Fit for Work Scheme       ,20/12/21,PARKWOOD LEISURE LTD                    ,472.50,Jan-22
EREWASH BOROUGH COUNCIL,7773,EBC Balance Sheet             ,Payroll Coll Acc - Trade Union,24/01/22,UNISON                                  ,426.45,Jan-22
EREWASH BOROUGH COUNCIL,6929,EBC Balance Sheet             ,Payroll Coll Acc - Trade Union,20/12/21,UNISON                                  ,434.30,Jan-22
EREWASH BOROUGH COUNCIL,7768,EBC Balance Sheet             ,Payroll Coll Acc Labour Party ,24/01/22,EREWASH LABOUR GROUP                    ,512.92,Jan-22
EREWASH BOROUGH COUNCIL,6855,EBC Balance Sheet             ,Payroll Coll Acc Labour Party ,17/12/21,EREWASH LABOUR GROUP                    ,512.92,Jan-22
EREWASH BOROUGH COUNCIL,7772,EBC Balance Sheet             ,Payroll Coll Acc - AVCS       ,24/01/22,PRUDENTIAL                              ,"2,693.16",Jan-22
EREWASH BOROUGH COUNCIL,6925,EBC Balance Sheet             ,Payroll Coll Acc - AVCS       ,20/12/21,PRUDENTIAL                              ,"2,693.16",Jan-22
EREWASH BOROUGH COUNCIL,7769,EBC Balance Sheet             ,Payroll Coll Acc Credit Union ,24/01/22,DERBYSHIRE COMMUNITY BANK               ,330.00,Jan-22
EREWASH BOROUGH COUNCIL,6926,EBC Balance Sheet             ,Payroll Coll Acc Credit Union ,20/12/21,DERBYSHIRE COMMUNITY BANK               ,330.00,Jan-22
EREWASH BOROUGH COUNCIL,7187,EBC Balance Sheet             ,Childcare Salary Sacrifice    ,05/01/22,KIDDIVOUCHERS LTD                       ,333.00,Jan-22
EREWASH BOROUGH COUNCIL,6858,Personnel and ICT             ,Vehicles                      ,15/12/21,INSIGHT DIRECT (UK) LTD                 ,411.51,Jan-22
EREWASH BOROUGH COUNCIL,6862,Personnel and ICT             ,Vehicles                      ,17/12/21,INSIGHT DIRECT (UK) LTD                 ,446.64,Jan-22
EREWASH BOROUGH COUNCIL,6861,Personnel and ICT             ,Vehicles                      ,17/12/21,INSIGHT DIRECT (UK) LTD                 ,491.16,Jan-22
EREWASH BOROUGH COUNCIL,6863,Personnel and ICT             ,Vehicles                      ,17/12/21,INSIGHT DIRECT (UK) LTD                 ,"2,469.06",Jan-22
EREWASH BOROUGH COUNCIL,6912,Planning                      ,External Property Works       ,18/12/21,LANDTECH SURVEYS LTD                    ,750.00,Jan-22
EREWASH BOROUGH COUNCIL,6889,EBC Balance Sheet             ,VAT,20/12/21,PENHAM EXCEL LIMITED                    ,293.03,Jan-22
EREWASH BOROUGH COUNCIL,6714,EBC Balance Sheet             ,VAT,13/12/21,PENHAM EXCEL LIMITED                    ,313.18,Jan-22
EREWASH BOROUGH COUNCIL,7359,EBC Balance Sheet             ,VAT,10/01/22,PENHAM EXCEL LIMITED                    ,387.43,Jan-22
